fUST/lending_fUST_20250521
["ID","MTS","AMOUNT","RATE_DAILY","PERIOD"]
[361783133,1747776641339,-1270.68,0.00022465,2]
[361783134,1747776641349,-2639.7,0.00022465,2]
[361783135,1747776641358,-611.58,0.00022465,2]
[361783136,1747776641368,-444.59,0.00022465,2]
[361783137,1747776641377,-661.79,0.00022465,2]
[361783138,1747776641387,-836.48,0.00022465,2]
[361783139,1747776641396,-442.6,0.00022465,2]
[361783140,1747776641406,-1901.72,0.00022465,2]
[361783141,1747776641450,-1593.13,0.00022465,2]
[361783142,1747776641460,-756.07,0.00022465,2]
[361783143,1747776641469,-486.77,0.00022465,2]
[361783144,1747776641479,-430.0,0.00022465,2]
[361783145,1747776641488,-779.03,0.00022465,2]
[361783146,1747776641497,-5033.35766472,0.0002259,7]
[361783147,1747776641507,-6597.8110154,0.000226,7]
[361783148,1747776641516,-845.47244293,0.00022739,2]
[361783149,1747776641526,-1270.83952183,0.00022739,2]
[361783150,1747776641535,-2639.76551194,0.00022739,2]
[361783151,1747776641545,-611.76137971,0.00022739,2]
[361783152,1747776641554,-444.78752041,0.00022739,2]
[361783153,1747776641563,-661.95,0.00022739,2]
[361783154,1747776641573,-836.67215568,0.00022739,2]
[361783155,1747776641582,-442.79,0.00022739,2]
[361783156,1747776641593,-1901.72686447,0.00022739,2]
[361783157,1747776641602,-1593.18237123,0.00022739,2]
[361783158,1747776641612,-756.25433819,0.00022739,2]
[361783159,1747776641621,-486.9922608,0.00022739,2]
[361783160,1747776641630,-161.15,0.00022739,2]
[361783161,1747776641641,-779.03188423,0.00022739,2]
[361783162,1747776641650,-12640.66806714,0.000228,7]
[361783163,1747776641660,-5033.35766472,0.00022866,8]
[361783164,1747776641669,-223.0315306,0.0002288,2]
[361783165,1747776641680,-151.0,0.0002288,2]
[361783166,1747776641689,-184.8375111,0.00022959,2]
[361783167,1747776641698,-500.0,0.00023,30]
[361783168,1747776641707,-422.65292303,0.00023,3]
[361783169,1747776641717,-500.0,0.00023034,2]
[361783170,1747776641726,-184.8375111,0.00023068,2]
[361783171,1747776641735,-5033.35766472,0.00023141,8]
[361783172,1747776641745,-184.8375111,0.00023178,2]
[361783173,1747776641754,-184.83751109,0.0002326,2]
[361783174,1747776641764,-184.8375111,0.00023288,2]
[361783175,1747776641783,-184.8375111,0.00023397,2]
[361783176,1747776641794,-500.0,0.00023417,2]
[361783177,1747776641803,-5033.35766472,0.00023417,9]
[361783178,1747776641813,-184.8375111,0.00023507,2]
[361783179,1747776641822,-184.83751109,0.00023562,2]
[361783180,1747776641832,-184.8375111,0.00023616,2]
[361783181,1747776641842,-5033.35766472,0.00023693,9]
[361783182,1747776641851,-184.8375111,0.00023726,2]
[361783183,1747776641862,-184.8375111,0.00023836,2]
[361783184,1747776641872,-1309.309139,0.0002384,5]
[361783185,1747776641883,-1000.0,0.0002386,5]
[361783186,1747776641892,-184.83751109,0.00023863,2]
[361783187,1747776641903,-1000.0,0.0002388,5]
[361783188,1747776641913,-2769.71,0.000239,2]
[361783189,1747776641922,-2000.0,0.000239,2]
[361783190,1747776641932,-1000.0,0.000239,5]
[361783191,1747776641942,-355.3014593,0.000239,2]
[361783192,1747776641951,-500.0,0.000239,9]
[361783193,1747776641961,-500.0,0.000239,9]
[361783194,1747776641970,-184.8375111,0.00023945,2]
[361783195,1747776641980,-5033.35766472,0.00023969,10]
[361783196,1747776641989,-160.0,0.00024,7]
[361783198,1747776641999,-422.65292303,0.00024,7]
[361783199,1747776642009,-184.8375111,0.00024082,2]
[361783201,1747776642018,-508.19098131,0.00024103,2]
[361783202,1747776642028,-184.8375111,0.00024192,2]
[361783204,1747776642037,-636.0,0.000242,2]
[361783206,1747776642046,-5033.35766472,0.00024245,10]
[361783207,1747776642055,-231.28369723,0.00024249,2]
[361783209,1747776642066,-739.53571121,0.00024324,4]
[361783210,1747776642076,-508.19098131,0.00024355,2]
[361783212,1747776642085,-437.36652355,0.000244,2]
[361783213,1747776642095,-425.05770972,0.000244,2]
[361783214,1747776642104,-500.0,0.000244,2]
[361783215,1747776642113,-1529.780279,0.00024401,2]
[361783216,1747776642123,-5033.35766472,0.00024521,11]
[361783217,1747776642133,-508.19098132,0.0002462,2]
[361783218,1747776642143,-778.22,0.00024657,2]
[361783219,1747776642153,-3107.77,0.00024657,4]
[361783220,1747776642163,-380.0,0.00024658,2]
[361783221,1747776642173,-622.29019112,0.00024658,2]
[361783222,1747776642182,-211.90771416,0.00024658,2]
[361783223,1747776642191,-200.0,0.00024695,120]
[361783224,1747776642200,-27414.15,0.000247,2]
[361783225,1747776642209,-7047.06,0.000247,7]
[361783226,1747776642218,-5033.35766472,0.00024797,11]
[361783227,1747776642228,-2559.0,0.000248,2]
[361783228,1747776642237,-2559.0,0.000248,2]
[361783229,1747776642247,-2559.0,0.000248,2]
[361783230,1747776642256,-2559.0,0.000248,2]
[361783231,1747776642265,-2559.0,0.000248,2]
[361783232,1747776642275,-2559.0,0.000248,2]
[361783233,1747776642284,-165.96162362,0.000248,2]
[361783234,1747776642293,-3151.81060369,0.00024846,2]
[361783235,1747776642303,-3151.81060369,0.00024891,2]
[361783236,1747776642312,-2000.0,0.000249,2]
[361783237,1747776642322,-1436.01,0.000249,7]
[361783238,1747776642331,-158826.38,0.000249,2]
[361783239,1747776642340,-195248.40595301,0.000249,7]
[361783240,1747776642567,-223.0,0.00016437,2]
[361783241,1747776642577,-3482.81,0.00017808,2]
[361783242,1747776642587,-69.250212,0.00018082,2]
[361783257,1747776644248,-27.10981097,0.00016273,2]
[361783258,1747776644359,-4972.89018903,0.00016273,2]
[361783259,1747776644369,-3413.559788,0.00018082,2]
[361783260,1747776644379,-2024.55002297,0.00018356,2]
[361783261,1747776644392,-1458.25997703,0.00018356,2]
[361783262,1747776644401,-3482.81,0.0001863,2]
[361783263,1747776644411,-246.88492509,0.00018873,2]
[361783264,1747776644422,-3482.81,0.00018904,2]
[361783265,1747776644432,-3482.81,0.00019178,2]
[361783266,1747776644441,-3482.81,0.00019452,2]
[361783267,1747776644452,-389.94445737,0.00019726,2]
[361783281,1747776646777,-0.15066706,0.00019726,2]
[361783296,1747777244012,-4903.0,0.00013292,2]
[361783298,1747777441245,-4905.0,0.00013159,2]
[361783299,1747777593369,5000.0,0.00013,2]
[361783328,1747777832480,-3860.37044548,0.00013426,2]
[361783331,1747777832490,-300.0,0.00014396,2]
[361783333,1747777832500,-300.0,0.00014396,2]
[361783335,1747777832511,-300.0,0.00014396,2]
[361783336,1747777832521,-503.19944684,0.00014396,2]
[361783338,1747777832539,-696.80055316,0.00014396,2]
[361783339,1747777832548,-10000.0,0.00014397,2]
[361783340,1747777832559,-214.9809894,0.00014559,2]
[361783342,1747777832568,-185.564221,0.00014931,2]
[361783344,1747777832578,-438.1429141,0.00015,2]
[361783346,1747777832587,-438.14291408,0.00015,2]
[361783348,1747777832600,-210.2705068,0.00015002,2]
[361783350,1747777832609,-438.14291408,0.00015293,2]
[361783352,1747777832619,-160.0,0.00015388,2]
[361783354,1747777832628,-3256.3544256,0.00015394,2]
[361783356,1747777832640,-21643.6455744,0.00015394,2]
[361783358,1747777832651,-420.0,0.00015766,2]
[361783359,1747777832660,-1680.0,0.00015836,2]
[361783360,1747777832670,-14744.0,0.00016088,2]
[361783361,1747777832679,-365.72197817,0.00016437,2]
[361783362,1747777832691,-134.27802183,0.00016437,2]
[361783364,1747777832700,-232.25146886,0.00016437,2]
[361783365,1747777832711,-267.74853114,0.00016437,2]
[361783366,1747777832720,-262.3441014,0.00016437,2]
[361783367,1747777832730,-197.01533608,0.00016437,2]
[361783373,1747777838403,-300.0,0.00014395,2]
[361783374,1747777838413,-420.0,0.00015764,2]
[361783375,1747777838422,-302.98466392,0.00016437,2]
[361783376,1747777838431,-221.30460234,0.00016437,2]
[361783377,1747777838440,-430.0,0.00016438,2]
[361783378,1747777838449,-430.0,0.00016438,2]
[361783379,1747777838459,-164.47873093,0.00016438,2]
[361783380,1747777838468,-426.43568627,0.00016438,2]
[361783381,1747777838477,-430.0,0.00016438,2]
[361783382,1747777838486,-450.0,0.00016438,2]
[361783383,1747777838495,-201.77,0.00016438,2]
[361783384,1747777838504,-450.0,0.00016438,2]
[361783385,1747777838513,-450.0,0.00016438,2]
[361783386,1747777838523,-450.0,0.00016438,2]
[361783387,1747777838532,-430.0,0.00016438,2]
[361783388,1747777838541,-450.0,0.00016438,2]
[361783389,1747777838550,-450.0,0.00016438,2]
[361783390,1747777838559,-430.0,0.00016438,2]
[361783391,1747777838569,-430.0,0.00016438,2]
[361783392,1747777838578,-450.0,0.00016438,2]
[361783393,1747777838587,-430.0,0.00016438,2]
[361783394,1747777838596,-450.0,0.00016438,2]
[361783395,1747777838604,-264.81749663,0.00016438,2]
[361783396,1747777838616,-185.18250337,0.00016438,2]
[361783397,1747777838625,-218.00777712,0.00016438,2]
[361783398,1747777838637,-211.99222288,0.00016438,2]
[361783399,1747777838646,-430.0,0.00016438,2]
[361783400,1747777838656,-430.0,0.00016438,2]
[361783401,1747777838665,-430.0,0.00016438,2]
[361783402,1747777838674,-450.0,0.00016438,2]
[361783403,1747777838683,-370.88293833,0.00016438,2]
[361783404,1747777838692,-430.0,0.00016438,2]
[361783405,1747777838702,-450.0,0.00016438,2]
[361783406,1747777838711,-430.0,0.00016438,2]
[361783407,1747777838719,-105.36508253,0.00016438,2]
[361783408,1747777838731,-324.63491747,0.00016438,2]
[361783409,1747777838740,-450.0,0.00016438,2]
[361783410,1747777838749,-450.0,0.00016438,2]
[361783411,1747777838758,-1791.22,0.00016438,2]
[361783412,1747777838767,-430.0,0.00016712,2]
[361783413,1747777838777,-430.0,0.00016712,2]
[361783414,1747777838787,-430.0,0.00016712,2]
[361783415,1747777838798,-163.66430381,0.00016712,2]
[361783416,1747777838808,-430.0,0.00016712,2]
[361783417,1747777838818,-1791.22,0.00016712,2]
[361783418,1747777838829,-341.87832086,0.00016822,2]
[361783419,1747777838843,-158.12167914,0.00016822,2]
[361783420,1747777838854,-581.93503331,0.00016864,2]
[361783421,1747777838865,-430.0,0.00016986,2]
[361783422,1747777838875,-430.0,0.00016986,2]
[361783423,1747777838885,-499.35811577,0.00016986,2]
[361783424,1747777838895,-430.0,0.00016986,2]
[361783425,1747777838905,-1152.24654134,0.00016986,2]
[361783426,1747777838916,-638.97345866,0.00016986,2]
[361783427,1747777838926,-500.0,0.000172,2]
[361783429,1747777838936,-500.0,0.00017225,2]
[361783431,1747777838946,-430.0,0.0001726,2]
[361783432,1747777838955,-430.0,0.0001726,2]
[361783433,1747777838965,-430.0,0.0001726,2]
[361783434,1747777838977,-1791.22,0.0001726,2]
[361783435,1747777838987,-180.0,0.00017264,2]
[361783436,1747777838996,-587.0,0.00017265,2]
[361783437,1747777839005,-331.045207,0.0001737,2]
[361783438,1747777839015,-170.0,0.0001742,2]
[361783439,1747777839024,-430.0,0.00017534,2]
[361783440,1747777839033,-430.0,0.00017534,2]
[361783441,1747777839042,-430.0,0.00017534,2]
[361783442,1747777839052,-602.37853022,0.00017534,2]
[361783443,1747777839064,-1188.84146978,0.00017534,2]
[361783444,1747777839073,-160.0,0.00017706,2]
[361783445,1747777839082,-160.0,0.00017706,2]
[361783446,1747777839091,-160.0,0.00017706,2]
[361783447,1747777839101,-422.65292303,0.00017706,2]
[361783448,1747777839110,-894.64583333,0.00017706,2]
[361783449,1747777839119,-160.0,0.00017706,2]
[361783450,1747777839128,-160.0,0.00017706,2]
[361783451,1747777839137,-12640.66806714,0.00017707,2]
[361783452,1747777839146,-212.38718278,0.00017707,2]
[361783453,1747777839155,-160.0,0.00017707,2]
[361783454,1747777839164,-160.0,0.00017707,2]
[361783455,1747777839174,-160.0,0.00017707,2]
[361783456,1747777839184,-160.0,0.00017707,2]
[361783457,1747777839193,-549.90436021,0.00017773,2]
[361783458,1747777839203,-430.0,0.00017808,2]
[361783459,1747777839212,-430.0,0.00017808,2]
[361783460,1747777839225,-430.0,0.00017808,2]
[361783461,1747777839234,-1791.22,0.00017808,2]
[361783462,1747777839243,-430.0,0.00018082,2]
[361783463,1747777839254,-359.6976485,0.00018082,2]
[361783467,1747777840681,-70.3023515,0.00018082,2]
[361783468,1747777840692,-249.6411885,0.00018082,2]
[361783469,1747777840701,-865.57413332,0.00018082,2]
[361783470,1747777840740,-652.05725676,0.00018082,2]
[361783471,1747777840752,-273.58860992,0.00018082,2]
[361783472,1747777840763,-232.22,0.00018356,2]
[361783473,1747777840772,-430.0,0.00018356,2]
[361783474,1747777840783,-1791.22,0.00018356,2]
[361783475,1747777840792,-570.43771813,0.0001863,2]
[361783476,1747777840802,-1791.22,0.0001863,2]
[361783477,1747777840812,-562.5902698,0.00018721,2]
[361783478,1747777840821,-1791.22,0.00018904,2]
[361783480,1747777840831,-313.0,0.00018907,2]
[361783482,1747777840840,-1791.22,0.00019178,2]
[361783483,1747777840850,-1791.22,0.00019452,2]
[361783484,1747777840859,-1791.22,0.00019726,2]
[361783485,1747777840869,-1791.22,0.0002,2]
[361783487,1747777840878,-207.4,0.00020142,2]
[361783488,1747777840888,-151.0,0.00020142,2]
[361783490,1747777840897,-1791.22,0.00020273,2]
[361783491,1747777840907,-1791.22,0.00020547,2]
[361783492,1747777840917,-423.003,0.00020776,2]
[361783493,1747777840926,-1791.22,0.00020821,2]
[361783494,1747777840936,-1791.22,0.00021095,2]
[361783495,1747777840945,-500.0,0.00021225,2]
[361783496,1747777840955,-1791.22,0.00021369,2]
[361783497,1747777840965,-328.29384858,0.00021511,2]
[361783498,1747777840977,-1791.22,0.00021643,2]
[361783499,1747777840986,-1791.22,0.00021917,2]
[361783500,1747777840996,-98.55692433,0.00021917,2]
[361783512,1747777843602,-249.587216,0.00013699,2]
[361783513,1747777843612,-1594.44339254,0.000199,2]
[361783514,1747777843621,-1594.44339249,0.00020107,2]
[361783515,1747777843631,-249.587216,0.00020187,2]
[361783516,1747777843640,-2750.23307567,0.00021917,2]
[361783517,1747777843649,-1791.22,0.00022191,2]
[361783518,1747777843659,-1791.22,0.00022465,2]
[361783520,1747777843669,-1791.3674484,0.00022739,2]
[361783522,1747777843678,-546.0,0.00022764,2]
[361783524,1747777843687,-707.0,0.00022764,2]
[361783526,1747777843696,-2235.0,0.00022764,2]
[361783528,1747777843706,-404.0,0.00022764,2]
[361783530,1747777843715,-500.0,0.00023,30]
[361783531,1747777843725,-7104.75991423,0.00023,2]
[361783533,1747777843734,-500.0,0.00023417,2]
[361783535,1747777843744,-200.0,0.00023808,7]
[361783537,1747777843753,-241.69084553,0.00023808,7]
[361783539,1747777843763,-2000.0,0.000239,2]
[361783541,1747777843772,-2492.73,0.00024,2]
[361783543,1747777843782,-200.0,0.0002407,7]
[361783545,1747777843791,-200.0,0.0002407,7]
[361783546,1747777843801,-500.0,0.000243,9]
[361783547,1747777843811,-1376.802251,0.00024401,2]
[361783548,1747777843820,-5481.34815498,0.0002456,2]
[361783549,1747777843830,-291.53,0.00024657,30]
[361783550,1747777843840,-745.8,0.00024657,2]
[361783551,1747777843849,-2848.79,0.00024657,4]
[361783552,1747777843858,-380.0,0.00024658,2]
[361783553,1747777843868,-500.0,0.00024659,2]
[361783554,1747777843878,-500.0,0.00024659,2]
[361783555,1747777843888,-500.0,0.00024659,2]
[361783556,1747777843898,-435.60313378,0.00024659,2]
[361783557,1747777843907,-500.0,0.00024659,2]
[361783558,1747777843916,-500.0,0.00024659,2]
[361783559,1747777843926,-231.49903071,0.00024659,2]
[361783560,1747777843935,-500.0,0.00024659,2]
[361783561,1747777843945,-500.0,0.00024659,2]
[361783562,1747777843954,-632.96115315,0.00024659,2]
[361783563,1747777843964,-500.0,0.00024659,2]
[361783564,1747777843975,-500.0,0.00024659,2]
[361783565,1747777843985,-500.0,0.00024659,2]
[361783566,1747777843995,-178.97301156,0.00024659,2]
[361783567,1747777844005,-500.0,0.00024659,2]
[361783568,1747777844015,-500.0,0.00024659,2]
[361783569,1747777844024,-500.0,0.00024659,2]
[361783570,1747777844035,-500.0,0.00024659,2]
[361783571,1747777844045,-500.0,0.00024659,2]
[361783572,1747777844056,-57188.10777564,0.0002466,7]
[361783573,1747777844067,-57188.10777564,0.0002466,7]
[361783574,1747777844076,-212.38718278,0.0002466,7]
[361783575,1747777844086,-160.0,0.0002466,7]
[361783576,1747777844095,-422.65292303,0.0002466,7]
[361783577,1747777844104,-27414.15,0.000247,2]
[361783578,1747777844114,-6264.06,0.000247,7]
[361783579,1747777844123,-1292.41,0.000247,7]
[361783580,1747777844132,-2559.0,0.000248,2]
[361783581,1747777844142,-2559.0,0.000248,2]
[361783582,1747777844151,-5481.34815496,0.00024812,2]
[361783583,1747777844161,-12490.12202917,0.000249,3]
[361783584,1747777844171,-160.0,0.000249,3]
[361783585,1747777844180,-84053.0611227,0.000249,2]
[361783586,1747777844189,-11455.01853099,0.000249,3]
[361783587,1747777844199,-316241.49867122,0.000249,7]
[361783593,1747777846695,-1594.44339249,0.00020314,3]
[361783594,1747777846705,-1594.44339249,0.00020521,3]
[361783595,1747777846715,-1594.44339249,0.00020728,3]
[361783596,1747777846725,-1594.44339249,0.00020934,4]
[361783597,1747777846734,-1594.44339249,0.00021141,4]
[361783598,1747777846744,-1594.44339249,0.00021348,5]
[361783599,1747777846755,-1594.44339249,0.00021555,5]
[361783600,1747777846766,-1594.44339249,0.00021762,5]
[361783601,1747777846775,-1594.44339249,0.00021969,6]
[361783602,1747777846785,-6912.00946759,0.000249,7]
[361783603,1747777846796,-45928.94590818,0.000249,7]
[361783604,1747777846806,-87807.52203348,0.000249,2]
[361783605,1747777846817,-55136.21796652,0.000249,2]
[361783606,1747777846828,-2000.0,0.000249,2]
[361783607,1747777846838,-195.027853,0.000249,7]
[361783608,1747777846848,-170.871028,0.000249,7]
[361783609,1747777846858,-212.38718278,0.000249,3]
[361783610,1747777846870,-160.0,0.000249,3]
[361783611,1747777846879,-438838.4557821,0.000249,2]
[361783612,1747777846891,-480.44,0.000249,2]
[361783619,1747778039589,-217.35516507,0.00013327,2]
[361783620,1747778042520,-319.99338069,0.00013327,2]
[361783621,1747778044034,-200.0,0.00013327,2]
[361783622,1747778045573,-319.60498314,0.00013327,2]
[361783623,1747778047108,-239.20996628,0.00013327,2]
[361783624,1747778048784,-180.39501686,0.00013327,2]
[361783625,1747778051547,-71.41865881,0.00013327,2]
[361783626,1747778051576,-200.48582334,0.00013462,2]
[361783627,1747778053978,-200.48582334,0.00013462,2]
[361783637,1747778501217,1261.75570907,0.0002,120]
[361783646,1747779001773,-266.60017646,0.00013562,2]
[361783650,1747779032667,-1146.57304141,0.00013562,2]
[361783651,1747779032677,-261.443134,0.00013699,2]
[361783652,1747779032687,-519.9933807,0.0001555,2]
[361783653,1747779032696,-300.0,0.00015656,2]
[361783654,1747779032706,-300.0,0.00015656,2]
[361783655,1747779032716,-300.0,0.00015656,2]
[361783656,1747779032726,-1200.0,0.00015656,2]
[361783657,1747779032736,-24900.0,0.00015658,2]
[361783658,1747779032746,-261.2638673,0.00015853,2]
[361783659,1747779032756,-160.0,0.00016236,2]
[361783660,1747779032766,-243.94771721,0.00016338,2]
[361783661,1747779032776,-430.0,0.00016438,2]
[361783662,1747779032786,-430.0,0.00016438,2]
[361783663,1747779032797,-389.66,0.00016438,2]
[361783664,1747779032807,-450.0,0.00016438,2]
[361783665,1747779032816,-450.0,0.00016438,2]
[361783666,1747779032826,-450.0,0.00016438,2]
[361783667,1747779032836,-302.85,0.00016438,2]
[361783669,1747779032846,-430.0,0.00016438,2]
[361783670,1747779032857,-450.0,0.00016438,2]
[361783671,1747779032867,-450.0,0.00016438,2]
[361783672,1747779032877,-430.0,0.00016438,2]
[361783673,1747779032886,-180.07703193,0.00016438,2]
[361783674,1747779032896,-430.0,0.00016438,2]
[361783675,1747779032906,-430.0,0.00016438,2]
[361783676,1747779032916,-450.0,0.00016438,2]
[361783677,1747779032928,-450.0,0.00016438,2]
[361783678,1747779032937,-430.0,0.00016438,2]
[361783679,1747779032947,-430.0,0.00016438,2]
[361783680,1747779032957,-379.74458671,0.00016438,2]
[361783681,1747779032967,-497.66,0.00016438,2]
[361783682,1747779032976,-430.0,0.00016438,2]
[361783683,1747779032986,-450.0,0.00016438,2]
[361783684,1747779032995,-450.0,0.00016438,2]
[361783685,1747779033005,-430.0,0.00016438,2]
[361783686,1747779033015,-430.0,0.00016438,2]
[361783687,1747779033024,-430.0,0.00016438,2]
[361783688,1747779033033,-1203.12,0.00016438,2]
[361783689,1747779033043,-430.0,0.00016438,2]
[361783690,1747779033052,-430.0,0.00016438,2]
[361783691,1747779033063,-430.0,0.00016438,2]
[361783692,1747779033073,-430.0,0.00016438,2]
[361783693,1747779033083,-430.0,0.00016438,2]
[361783694,1747779033094,-430.0,0.00016438,2]
[361783695,1747779033104,-570.81,0.00016438,2]
[361783696,1747779033114,-430.0,0.00016438,2]
[361783697,1747779033124,-430.0,0.00016438,2]
[361783698,1747779033133,-456.3,0.00016438,2]
[361783699,1747779033142,-450.0,0.00016438,2]
[361783700,1747779033152,-485.0,0.00016438,2]
[361783701,1747779033162,-450.0,0.00016438,2]
[361783702,1747779033172,-574.9,0.00016438,2]
[361783703,1747779033181,-430.0,0.00016438,2]
[361783709,1747779033396,-430.0,0.00016438,2]
[361783711,1747779033405,-430.0,0.00016438,2]
[361783712,1747779033415,-430.0,0.00016438,2]
[361783714,1747779033424,-450.0,0.00016438,2]
[361783715,1747779033434,-430.0,0.00016438,2]
[361783716,1747779033444,-316.58126201,0.00016438,2]
[361783717,1747779033453,-450.0,0.00016438,2]
[361783719,1747779033462,-500.0,0.00016438,2]
[361783720,1747779033472,-430.0,0.00016712,2]
[361783722,1747779033481,-228.86,0.00016712,2]
[361783724,1747779033491,-430.0,0.00016712,2]
[361783726,1747779033500,-347.55,0.00016712,2]
[361783727,1747779033509,-430.0,0.00016712,2]
[361783728,1747779033518,-430.0,0.00016712,2]
[361783729,1747779033528,-1203.12,0.00016712,2]
[361783730,1747779033537,-515.71,0.00016712,2]
[361783731,1747779033546,-192.8,0.00016712,2]
[361783732,1747779033556,-430.0,0.00016712,2]
[361783733,1747779033566,-430.0,0.00016712,2]
[361783734,1747779033575,-522.84,0.00016712,2]
[361783735,1747779033584,-430.0,0.00016712,2]
[361783736,1747779033594,-290.0,0.00016712,2]
[361783737,1747779033604,-430.0,0.00016712,2]
[361783738,1747779033613,-500.0,0.00016858,2]
[361783739,1747779033622,-500.0,0.00016863,2]
[361783740,1747779033631,-500.0,0.00016863,2]
[361783741,1747779033641,-3480.83790403,0.000169,2]
[361783742,1747779033650,-152.4554076,0.00016985,2]
[361783743,1747779033659,-157.69,0.00016986,2]
[361783744,1747779033668,-430.0,0.00016986,2]
[361783745,1747779033678,-430.0,0.00016986,2]
[361783746,1747779033687,-232.67,0.00016986,2]
[361783747,1747779033696,-1203.12,0.00016986,2]
[361783748,1747779033706,-179.9351714,0.00016986,2]
[361783749,1747779033716,-430.0,0.00016986,2]
[361783750,1747779033725,-430.0,0.00016986,2]
[361783751,1747779033734,-420.0,0.00017123,2]
[361783752,1747779033744,-3480.83790388,0.0001721,2]
[361783753,1747779033754,-426.38,0.0001726,2]
[361783754,1747779033775,-430.0,0.0001726,2]
[361783755,1747779033786,-1203.12,0.0001726,2]
[361783756,1747779033796,-430.0,0.0001726,2]
[361783757,1747779033807,-430.0,0.0001726,2]
[361783758,1747779033817,-500.0,0.0001741,2]
[361783759,1747779033827,-3480.83790388,0.00017521,2]
[361783760,1747779033837,-331.37224714,0.00017534,2]
[361783761,1747779033848,-1203.12,0.00017534,2]
[361783762,1747779033859,-257.39,0.00017534,2]
[361783763,1747779033870,-430.0,0.00017534,2]
[361783764,1747779033880,-243.94771719,0.00017635,2]
[361783765,1747779033890,-12636.50182523,0.00017731,2]
[361783766,1747779033900,-160.0,0.00017731,2]
[361783767,1747779033911,-894.64583333,0.00017731,2]
[361783768,1747779033921,-160.0,0.00017731,2]
[361783769,1747779033931,-160.0,0.00017731,2]
[361783770,1747779033941,-212.38718278,0.00017731,2]
[361783771,1747779033951,-160.0,0.00017731,2]
[361783772,1747779033961,-160.0,0.00017731,2]
[361783773,1747779033971,-422.65292303,0.00017731,2]
[361783774,1747779033980,-160.0,0.00017731,2]
[361783775,1747779033990,-1203.12,0.00017808,2]
[361783776,1747779033999,-430.0,0.00017808,2]
[361783777,1747779034009,-3480.83790388,0.00017831,2]
[361783778,1747779034019,-1203.12,0.00018082,2]
[361783779,1747779034029,-430.0,0.00018082,2]
[361783780,1747779034039,-3480.83790388,0.00018141,2]
[361783781,1747779034049,-1203.12,0.00018356,2]
[361783782,1747779034059,-430.0,0.00018356,2]
[361783783,1747779034069,-501.31626111,0.00018381,2]
[361783784,1747779034079,-500.0,0.00018393,2]
[361783785,1747779034089,-3480.83790388,0.00018452,2]
[361783786,1747779034099,-1203.12,0.0001863,2]
[361783787,1747779034110,-430.0,0.0001863,2]
[361783788,1747779034120,-500.0,0.00018693,2]
[361783789,1747779034130,-587.0,0.00018728,2]
[361783790,1747779034140,-500.0,0.00018756,2]
[361783791,1747779034149,-3480.83790388,0.00018762,2]
[361783792,1747779034160,-800.05017232,0.000189,2]
[361783793,1747779034170,-1203.12,0.00018904,2]
[361783794,1747779034180,-430.0,0.00018904,2]
[361783795,1747779034190,-243.94771719,0.00018933,2]
[361783796,1747779034200,-3480.83790388,0.00019072,2]
[361783797,1747779034210,-1203.12,0.00019178,2]
[361783798,1747779034219,-430.0,0.00019178,2]
[361783799,1747779034229,-155.0,0.00019178,2]
[361783800,1747779034239,-230.112573,0.00019178,2]
[361783801,1747779034249,-3480.83790388,0.00019383,2]
[361783802,1747779034259,-1203.12,0.00019452,2]
[361783803,1747779034268,-430.0,0.00019452,2]
[361783804,1747779034277,-3480.83790388,0.00019693,2]